[Event "Božićni turnir u VaraždinskimToplicama 26.12.2025."]
[Site "Varazdinske Toplice, Croatia"]
[Date "2025.12.26"]
[Round "3.2"]
[White "Petrus, Adrian"]
[Black "Kodric, Vladimir"]
[Result "1-0"]
[TimeControl "10"]
[WhiteFideId "14573652"]
[BlackFideId "14604264"]
[WhiteElo "1636"]
[BlackElo "1920"]

1. e4 {[%clk 00:09:57]} {[%emt 00:00:02]} e6 {[%clk 00:09:59]} {[%emt
00:00:02]} 2. d4 {[%clk 00:09:55]} {[%emt 00:00:02]} d5 {[%clk 00:09:58]}
{[%emt 00:00:01]} 3. Nc3 {[%clk 00:09:54]} Nf6 {[%clk 00:09:56]} {[%emt
00:00:02]} 4. e5 {[%clk 00:09:54]} Nfd7 {[%clk 00:09:55]} 5. f4 {[%clk
00:09:52]} {[%emt 00:00:03]} c5 {[%clk 00:09:54]} 6. Nf3 {[%clk 00:09:51]}
{[%emt 00:00:01]} cxd4 {[%clk 00:09:53]} {[%emt 00:00:02]} 7. Nxd4 {[%clk
00:09:50]} {[%emt 00:00:01]} Nc6 {[%clk 00:09:52]} 8. Nce2 {[%clk 00:09:41]}
{[%emt 00:00:09]} Nxd4 {[%clk 00:09:47]} {[%emt 00:00:04]} 9. Nxd4 {[%clk
00:09:39]} {[%emt 00:00:02]} a6 {[%clk 00:09:45]} {[%emt 00:00:03]} 10. Be3
{[%clk 00:09:29]} {[%emt 00:00:09]} Nc5 {[%clk 00:09:40]} {[%emt 00:00:05]} 11.
Be2 {[%clk 00:09:20]} {[%emt 00:00:09]} Qc7 {[%clk 00:09:30]} {[%emt 00:00:10]}
12. O-O {[%clk 00:09:05]} {[%emt 00:00:16]} g6 {[%clk 00:09:29]} {[%emt
00:00:01]} 13. c3 {[%clk 00:09:01]} {[%emt 00:00:04]} Bg7 {[%clk 00:09:06]}
{[%emt 00:00:22]} 14. a4 {[%clk 00:08:56]} {[%emt 00:00:05]} O-O {[%clk
00:09:02]} {[%emt 00:00:04]} 15. a5 {[%clk 00:08:56]} {[%emt 00:00:01]} Ne4
{[%clk 00:08:50]} {[%emt 00:00:12]} 16. Bd3 {[%clk 00:08:48]} {[%emt 00:00:08]}
Bd7 {[%clk 00:08:47]} {[%emt 00:00:02]} 17. Bxe4 {[%clk 00:08:26]} {[%emt
00:00:22]} dxe4 {[%clk 00:08:45]} {[%emt 00:00:02]} 18. Nc2 {[%clk 00:08:16]}
{[%emt 00:00:10]} Bc6 {[%clk 00:08:42]} {[%emt 00:00:03]} 19. Bb6 {[%clk
00:08:15]} {[%emt 00:00:01]} Qe7 {[%clk 00:08:33]} {[%emt 00:00:10]} 20. Nd4
{[%clk 00:08:08]} {[%emt 00:00:06]} Rfc8 {[%clk 00:08:25]} {[%emt 00:00:08]} 21.
Qe1 {[%clk 00:07:57]} {[%emt 00:00:11]} Bd5 {[%clk 00:08:17]} {[%emt 00:00:08]}
22. Qe3 {[%clk 00:07:52]} {[%emt 00:00:05]} Bf8 {[%clk 00:08:10]} {[%emt
00:00:08]} 23. Rfe1 {[%clk 00:07:40]} {[%emt 00:00:12]} Qh4 {[%clk 00:07:51]}
{[%emt 00:00:19]} 24. Qg3 {[%clk 00:06:30]} {[%emt 00:01:09]} Qh5 {[%clk
00:07:24]} {[%emt 00:00:27]} 25. h3 {[%clk 00:06:22]} {[%emt 00:00:08]} Be7
{[%clk 00:07:19]} {[%emt 00:00:05]} 26. Qe3 {[%clk 00:06:19]} {[%emt 00:00:03]}
Bh4 {[%clk 00:07:11]} {[%emt 00:00:09]} 27. Red1 {[%clk 00:06:07]} {[%emt
00:00:11]} Qh6 {[%clk 00:06:56]} {[%emt 00:00:15]} 28. b3 {[%clk 00:05:46]}
{[%emt 00:00:22]} f5 {[%clk 00:05:20]} {[%emt 00:01:36]} 29. c4 {[%clk
00:05:28]} {[%emt 00:00:19]} Bc6 {[%clk 00:05:19]} 30. Nxe6 {[%clk 00:05:21]}
{[%emt 00:00:07]} Qh5 {[%clk 00:04:50]} {[%emt 00:00:29]} 31. Rd2 {[%clk
00:05:03]} {[%emt 00:00:18]} Rf8 {[%clk 00:03:53]} {[%emt 00:00:57]} 32. Nxf8
{[%clk 00:04:00]} {[%emt 00:01:02]} Rxf8 {[%clk 00:03:51]} {[%emt 00:00:02]} 33.
Rad1 {[%clk 00:03:51]} {[%emt 00:00:09]} g5 {[%clk 00:03:50]} {[%emt 00:00:01]}
34. g3 {[%clk 00:03:15]} {[%emt 00:00:37]} gxf4 {[%clk 00:03:48]} {[%emt
00:00:02]} 35. gxf4 {[%clk 00:03:14]} {[%emt 00:00:01]} Kf7 {[%clk 00:03:44]}
{[%emt 00:00:03]} 36. e6+ {[%clk 00:02:57]} {[%emt 00:00:17]} Kxe6 {[%clk
00:03:15]} {[%emt 00:00:30]} 37. Rf1 {[%clk 00:02:57]} Rg8+ {[%clk 00:03:09]}
{[%emt 00:00:06]} 38. Rg2 {[%clk 00:02:56]} Rg6 {[%clk 00:02:36]} {[%emt
00:00:33]} 39. Rxg6+ {[%clk 00:02:46]} {[%emt 00:00:09]} Qxg6+ {[%clk
00:02:34]} {[%emt 00:00:03]} 40. Kh2 {[%clk 00:02:45]} Qf6 {[%clk 00:01:43]}
{[%emt 00:00:52]} 41. Qd4 {[%clk 00:02:21]} {[%emt 00:00:23]} Qxd4 {[%clk
00:00:46]} {[%emt 00:00:57]} 42. Bxd4 {[%clk 00:02:20]} {[%emt 00:00:02]} Bd8
{[%clk 00:00:45]} 43. Bc3 {[%clk 00:01:59]} {[%emt 00:00:20]} Bc7 {[%clk
00:00:44]} {[%emt 00:00:01]} 44. Kg3 {[%clk 00:01:57]} {[%emt 00:00:03]} b6
{[%clk 00:00:40]} {[%emt 00:00:04]} 45. axb6 {[%clk 00:01:53]} {[%emt
00:00:03]} Bxb6 {[%clk 00:00:39]} 46. Bd2 {[%clk 00:01:53]} Bd4 {[%clk
00:00:33]} {[%emt 00:00:07]} 47. Re1 {[%clk 00:01:50]} {[%emt 00:00:02]} Be8
{[%clk 00:00:23]} {[%emt 00:00:10]} 48. Be3 {[%clk 00:01:48]} {[%emt 00:00:03]}
Bc3 {[%clk 00:00:22]} {[%emt 00:00:01]} 49. Rc1 {[%clk 00:01:47]} {[%emt
00:00:01]} Bb4 {[%clk 00:00:21]} {[%emt 00:00:01]} 50. Ra1 {[%clk 00:01:43]}
{[%emt 00:00:04]} a5 {[%clk 00:00:20]} {[%emt 00:00:02]} 51. Rd1 {[%clk
00:01:42]} a4 {[%clk 00:00:12]} {[%emt 00:00:08]} 52. bxa4 {[%emt 00:00:02]}
Bxa4 53. Rd5 {[%clk 00:01:35]} {[%emt 00:00:03]} Be1+ {[%clk 00:00:07]} {[%emt
00:00:05]} 54. Kg2 {[%clk 00:01:34]} {[%emt 00:00:01]} Bc6 {[%clk 00:00:05]}
{[%emt 00:00:02]} 55. Kf1 {[%clk 00:01:29]} {[%emt 00:00:05]} Bc3 {[%clk
00:00:00]} {[%emt 00:00:05]} 56. Ke1 {[%emt 00:00:22]} 1-0

[Event "Božićni turnir u VaraždinskimToplicama 26.12.2025."]
[Site "Varazdinske Toplice, Croatia"]
[Date "2025.12.26"]
[Round "3.3"]
[White "Srsan, Matija"]
[Black "Vidovic, Sasa"]
[Result "1/2-1/2"]
[TimeControl "10"]
[WhiteFideId "14520001"]
[BlackFideId "14505010"]
[WhiteElo "1942"]
[BlackElo "2202"]

1. b3 {[%clk 00:09:56]} {[%emt 00:00:03]} Nf6 {[%clk 00:09:59]} {[%emt
00:00:02]} 2. Bb2 {[%clk 00:09:54]} {[%emt 00:00:02]} d6 {[%clk 00:09:58]} 3.
e3 {[%clk 00:09:49]} {[%emt 00:00:05]} c6 {[%clk 00:09:47]} {[%emt 00:00:11]} 4.
Nf3 {[%clk 00:09:34]} {[%emt 00:00:15]} Bg4 {[%clk 00:09:46]} {[%emt 00:00:02]}
5. Be2 {[%clk 00:09:30]} {[%emt 00:00:04]} Nbd7 {[%clk 00:09:45]} 6. h3 {[%clk
00:09:25]} {[%emt 00:00:05]} Bh5 {[%clk 00:09:44]} 7. d4 {[%clk 00:08:52]}
{[%emt 00:00:33]} Qc7 {[%clk 00:09:38]} {[%emt 00:00:07]} 8. Nbd2 {[%clk
00:08:27]} {[%emt 00:00:25]} e6 {[%clk 00:09:33]} {[%emt 00:00:05]} 9. e4
{[%clk 00:06:59]} {[%emt 00:01:27]} Bg6 {[%clk 00:09:20]} {[%emt 00:00:13]} 10.
Bd3 {[%clk 00:06:48]} {[%emt 00:00:11]} d5 {[%clk 00:09:15]} {[%emt 00:00:06]}
11. Qe2 {[%clk 00:06:37]} {[%emt 00:00:11]} dxe4 {[%clk 00:08:28]} {[%emt
00:00:47]} 12. Nxe4 {[%clk 00:06:34]} {[%emt 00:00:03]} Nxe4 {[%clk 00:08:04]}
{[%emt 00:00:24]} 13. Bxe4 {[%clk 00:06:29]} {[%emt 00:00:05]} Bxe4 {[%clk
00:06:44]} {[%emt 00:01:20]} 14. Qxe4 {[%clk 00:06:27]} {[%emt 00:00:01]} Qa5+
{[%clk 00:06:41]} {[%emt 00:00:04]} 15. c3 {[%clk 00:06:11]} {[%emt 00:00:16]}
Nf6 {[%clk 00:06:24]} {[%emt 00:00:17]} 16. Qe5 {[%clk 00:06:00]} {[%emt
00:00:10]} Qxe5+ {[%clk 00:05:48]} {[%emt 00:00:36]} 17. Nxe5 {[%clk 00:05:53]}
{[%emt 00:00:08]} Bd6 {[%clk 00:05:45]} {[%emt 00:00:03]} 18. Nf3 {[%clk
00:05:46]} {[%emt 00:00:07]} O-O {[%clk 00:05:21]} {[%emt 00:00:24]} 19. O-O
{[%clk 00:05:43]} {[%emt 00:00:02]} Rfd8 {[%clk 00:05:19]} {[%emt 00:00:02]} 20.
c4 {[%clk 00:04:50]} {[%emt 00:00:54]} a5 {[%clk 00:05:12]} {[%emt 00:00:07]}
21. a4 {[%clk 00:04:33]} {[%emt 00:00:16]} h6 {[%clk 00:04:55]} {[%emt
00:00:17]} 22. Rfe1 {[%clk 00:04:29]} {[%emt 00:00:04]} Bb4 {[%clk 00:04:40]}
{[%emt 00:00:17]} 23. Re3 {[%clk 00:04:21]} {[%emt 00:00:06]} Rab8 {[%clk
00:04:33]} {[%emt 00:00:08]} 24. Bc3 {[%clk 00:04:03]} {[%emt 00:00:18]} Bxc3
{[%clk 00:04:31]} {[%emt 00:00:02]} 25. Rxc3 {[%clk 00:04:02]} {[%emt
00:00:01]} Ne4 {[%clk 00:04:00]} {[%emt 00:00:31]} 26. Rd3 {[%clk 00:03:52]}
{[%emt 00:00:09]} Nc5 {[%clk 00:03:54]} {[%emt 00:00:07]} 27. Re3 {[%clk
00:03:46]} {[%emt 00:00:06]} Na6 {[%clk 00:03:51]} {[%emt 00:00:04]} 28. Rd1
{[%clk 00:03:41]} {[%emt 00:00:04]} Nb4 {[%clk 00:03:49]} {[%emt 00:00:02]} 29.
Re2 {[%clk 00:03:36]} {[%emt 00:00:05]} b5 {[%clk 00:03:26]} {[%emt 00:00:23]}
30. Re5 {[%clk 00:03:15]} {[%emt 00:00:20]} Rd7 {[%clk 00:03:14]} {[%emt
00:00:12]} 31. axb5 {[%clk 00:02:51]} {[%emt 00:00:25]} cxb5 {[%clk 00:03:14]}
32. Ra1 {[%clk 00:02:34]} {[%emt 00:00:17]} a4 {[%clk 00:03:11]} {[%emt
00:00:03]} 33. cxb5 {[%clk 00:02:22]} {[%emt 00:00:12]} axb3 {[%clk 00:03:10]}
34. Rb1 {[%clk 00:02:22]} {[%emt 00:00:02]} Nd5 {[%clk 00:03:04]} {[%emt
00:00:05]} 35. Rxb3 {[%emt 00:00:06]} Rdb7 36. Re1 {[%clk 00:02:10]} {[%emt
00:00:06]} Rxb5 {[%clk 00:03:03]} 37. Rxb5 {[%clk 00:02:08]} Rxb5 {[%clk
00:03:02]} 38. Rc1 {[%clk 00:02:03]} {[%emt 00:00:06]} Rb8 {[%clk 00:02:48]}
{[%emt 00:00:14]} 39. g3 {[%clk 00:02:01]} {[%emt 00:00:02]} f6 {[%clk
00:02:44]} {[%emt 00:00:04]} 40. Rc2 {[%clk 00:01:59]} {[%emt 00:00:02]} Kf7
{[%clk 00:02:44]} 41. Kg2 {[%clk 00:01:58]} g5 {[%clk 00:02:40]} {[%emt
00:00:04]} 42. Ra2 {[%clk 00:01:51]} {[%emt 00:00:08]} Rb7 {[%clk 00:02:36]}
{[%emt 00:00:03]} 43. Rc2 {[%clk 00:01:49]} h5 {[%clk 00:02:31]} {[%emt
00:00:05]} 44. Ra2 {[%clk 00:01:47]} {[%emt 00:00:03]} Nc3 {[%clk 00:02:23]}
{[%emt 00:00:08]} 45. Rc2 {[%clk 00:01:44]} {[%emt 00:00:03]} Nd5 {[%clk
00:02:22]} {[%emt 00:00:01]} 46. Ra2 {[%clk 00:01:43]} Rc7 {[%clk 00:02:21]} 47.
Rb2 {[%clk 00:01:42]} {[%emt 00:00:02]} Ra7 {[%clk 00:02:19]} {[%emt 00:00:02]}
48. Rc2 {[%clk 00:01:41]} Ra4 {[%clk 00:02:15]} {[%emt 00:00:04]} 49. Rb2
{[%clk 00:01:38]} {[%emt 00:00:03]} g4 {[%clk 00:02:09]} {[%emt 00:00:06]} 50.
hxg4 {[%clk 00:01:36]} {[%emt 00:00:02]} hxg4 {[%clk 00:02:08]} 51. Rb7+ {[%clk
00:01:31]} {[%emt 00:00:05]} Ke8 {[%clk 00:02:04]} {[%emt 00:00:05]} 52. Nh2
{[%clk 00:01:27]} {[%emt 00:00:04]} Rxd4 {[%clk 00:02:02]} {[%emt 00:00:02]} 53.
Rg7 {[%clk 00:01:25]} {[%emt 00:00:02]} f5 {[%clk 00:02:01]} {[%emt 00:00:01]}
54. Nf1 {[%clk 00:01:23]} {[%emt 00:00:01]} Rd1 {[%clk 00:01:54]} {[%emt
00:00:08]} 55. Ra7 {[%clk 00:01:21]} {[%emt 00:00:02]} Rc1 {[%clk 00:01:52]}
{[%emt 00:00:02]} 56. Rb7 {[%clk 00:01:19]} {[%emt 00:00:02]} Rc2 {[%clk
00:01:49]} {[%emt 00:00:02]} 57. Kg1 {[%clk 00:01:18]} {[%emt 00:00:02]} Rc1
{[%clk 00:01:48]} {[%emt 00:00:01]} 58. Kg2 {[%clk 00:01:17]} Rc7 {[%clk
00:01:47]} {[%emt 00:00:02]} 59. Rb8+ {[%clk 00:01:16]} Ke7 {[%clk 00:01:46]}
{[%emt 00:00:01]} 60. Rb2 {[%clk 00:01:15]} Rc3 {[%clk 00:01:44]} {[%emt
00:00:02]} 61. Rb7+ {[%clk 00:01:13]} {[%emt 00:00:02]} Kf6 {[%clk 00:01:43]}
62. Rb2 {[%clk 00:01:12]} {[%emt 00:00:01]} Rd3 {[%clk 00:01:39]} {[%emt
00:00:04]} 63. Nd2 {[%clk 00:01:11]} {[%emt 00:00:02]} Rc3 {[%clk 00:01:31]}
{[%emt 00:00:08]} 64. Ra2 {[%clk 00:01:09]} {[%emt 00:00:02]} Rc1 {[%clk
00:01:28]} {[%emt 00:00:02]} 65. Rb2 {[%clk 00:01:07]} {[%emt 00:00:02]} Ke5
{[%clk 00:01:24]} {[%emt 00:00:05]} 66. Nf1 {[%clk 00:01:06]} Rc3 {[%clk
00:01:19]} {[%emt 00:00:04]} 67. Ra2 {[%clk 00:01:04]} {[%emt 00:00:02]} f4
{[%clk 00:01:18]} {[%emt 00:00:01]} 68. gxf4+ {[%clk 00:01:00]} {[%emt
00:00:05]} Nxf4+ {[%clk 00:01:18]} {[%emt 00:00:01]} 69. Kh2 {[%clk 00:00:57]}
{[%emt 00:00:01]} Nd5 {[%clk 00:00:57]} {[%emt 00:00:22]} 70. Ng3 {[%clk
00:00:55]} {[%emt 00:00:02]} Rc8 {[%clk 00:00:51]} {[%emt 00:00:06]} 71. Re2+
{[%clk 00:00:54]} {[%emt 00:00:01]} Kf6 {[%clk 00:00:45]} {[%emt 00:00:06]} 72.
Ne4+ {[%clk 00:00:52]} {[%emt 00:00:02]} Ke7 {[%clk 00:00:45]} 73. Ra2 {[%clk
00:00:50]} {[%emt 00:00:02]} Rc4 {[%clk 00:00:41]} {[%emt 00:00:03]} 74. Ng3
{[%clk 00:00:48]} {[%emt 00:00:02]} Rf4 {[%clk 00:00:39]} {[%emt 00:00:03]} 75.
Kg2 {[%clk 00:00:46]} {[%emt 00:00:02]} Rf8 {[%clk 00:00:37]} {[%emt 00:00:01]}
76. Ne4 {[%clk 00:00:45]} {[%emt 00:00:02]} Rf4 {[%clk 00:00:36]} {[%emt
00:00:01]} 77. Ng3 {[%clk 00:00:44]} {[%emt 00:00:01]} Rd4 {[%clk 00:00:35]}
{[%emt 00:00:01]} 78. Ra7+ {[%clk 00:00:41]} {[%emt 00:00:02]} Kd6 {[%clk
00:00:34]} {[%emt 00:00:02]} 79. Ra6+ {[%clk 00:00:40]} {[%emt 00:00:01]} Ke5
{[%clk 00:00:33]} 80. Ra2 {[%clk 00:00:39]} {[%emt 00:00:02]} Nf4+ {[%clk
00:00:32]} {[%emt 00:00:01]} 81. Kh2 {[%clk 00:00:35]} {[%emt 00:00:03]} Nd3
{[%clk 00:00:31]} {[%emt 00:00:02]} 82. Re2+ {[%clk 00:00:33]} Kd5 {[%clk
00:00:30]} {[%emt 00:00:01]} 83. Rd2 {[%clk 00:00:30]} {[%emt 00:00:04]} Ne5
{[%clk 00:00:28]} {[%emt 00:00:02]} 84. Re2 {[%clk 00:00:29]} Nf3+ {[%clk
00:00:27]} {[%emt 00:00:01]} 85. Kg2 {[%clk 00:00:28]} Rd1 {[%clk 00:00:27]}
{[%emt 00:00:01]} 86. Nf1 {[%clk 00:00:27]} e5 {[%clk 00:00:26]} {[%emt
00:00:02]} 87. Re3 {[%clk 00:00:25]} {[%emt 00:00:01]} e4 {[%clk 00:00:24]}
{[%emt 00:00:02]} 88. Ra3 {[%clk 00:00:24]} Rb1 {[%clk 00:00:22]} {[%emt
00:00:02]} 89. Ne3+ {[%clk 00:00:23]} {[%emt 00:00:01]} 1/2-1/2

[Event "Božićni turnir u VaraždinskimToplicama 26.12.2025."]
[Site "Varazdinske Toplice, Croatia"]
[Date "2025.12.26"]
[Round "3.5"]
[White "Hostnjak, Domagoj"]
[Black "Zelenika, Zoran"]
[Result "*"]
[TimeControl "10"]
[WhiteFideId "14541548"]
[BlackFideId "14534452"]
[WhiteElo "1803"]
[BlackElo "2031"]

1. e4 {[%clk 00:09:58]} {[%emt 00:00:02]} c5 {[%clk 00:09:59]} 2. Nf3 {[%clk
00:09:57]} {[%emt 00:00:01]} e6 {[%clk 00:09:59]} 3. c4 {[%clk 00:09:56]} Nc6
{[%clk 00:09:56]} {[%emt 00:00:02]} 4. Nc3 {[%clk 00:09:55]} {[%emt 00:00:02]}
a6 {[%clk 00:09:55]} {[%emt 00:00:01]} 5. d4 {[%clk 00:09:52]} {[%emt
00:00:02]} cxd4 {[%clk 00:09:54]} {[%emt 00:00:02]} 6. Nxd4 {[%clk 00:09:51]}
Qc7 {[%clk 00:09:53]} 7. Be3 {[%clk 00:09:41]} {[%emt 00:00:11]} Nf6 {[%clk
00:09:52]} {[%emt 00:00:01]} 8. Be2 {[%clk 00:09:33]} {[%emt 00:00:07]} Bb4
{[%clk 00:09:50]} {[%emt 00:00:02]} 9. Nxc6 {[%clk 00:09:14]} {[%emt 00:00:19]}
Bxc3+ {[%clk 00:09:28]} {[%emt 00:00:23]} 10. bxc3 {[%clk 00:09:13]} {[%emt
00:00:01]} dxc6 {[%clk 00:09:22]} {[%emt 00:00:05]} 11. f3 {[%clk 00:09:06]}
{[%emt 00:00:07]} e5 {[%clk 00:09:18]} {[%emt 00:00:05]} 12. O-O {[%clk
00:08:58]} {[%emt 00:00:08]} h6 {[%clk 00:09:09]} {[%emt 00:00:09]} 13. c5
{[%clk 00:08:25]} {[%emt 00:00:32]} Be6 {[%clk 00:08:30]} {[%emt 00:00:38]} 14.
Qa4 {[%clk 00:08:16]} {[%emt 00:00:09]} O-O {[%clk 00:08:18]} {[%emt 00:00:13]}
15. Rfd1 {[%clk 00:08:13]} {[%emt 00:00:03]} Rfd8 {[%clk 00:08:16]} {[%emt
00:00:01]} 16. a3 {[%clk 00:07:14]} {[%emt 00:01:00]} Rxd1+ {[%clk 00:08:02]}
{[%emt 00:00:14]} 17. Rxd1 {[%clk 00:07:13]} {[%emt 00:00:01]} Rd8 {[%clk
00:08:00]} {[%emt 00:00:02]} 18. Rxd8+ {[%clk 00:06:08]} {[%emt 00:01:06]} Qxd8
{[%clk 00:07:59]} {[%emt 00:00:01]} 19. Qb4 {[%clk 00:06:01]} {[%emt 00:00:06]}
Qd7 {[%clk 00:07:16]} {[%emt 00:00:43]} 20. Kf2 {[%clk 00:05:45]} {[%emt
00:00:15]} Ne8 {[%clk 00:06:34]} {[%emt 00:00:43]} 21. Qb2 {[%clk 00:05:08]}
{[%emt 00:00:37]} f5 {[%clk 00:06:23]} {[%emt 00:00:10]} 22. exf5 {[%clk
00:04:45]} {[%emt 00:00:24]} Bxf5 {[%clk 00:06:22]} {[%emt 00:00:02]} 23. Bc4+
{[%clk 00:04:31]} {[%emt 00:00:13]} Kh8 {[%clk 00:06:07]} {[%emt 00:00:13]} 24.
Qd2 {[%clk 00:04:28]} {[%emt 00:00:04]} Qxd2+ 25. Bxd2 {[%clk 00:04:27]} Nf6
{[%clk 00:05:04]} {[%emt 00:00:01]} 26. Be3 {[%clk 00:03:44]} {[%emt 00:00:44]}
Kh7 {[%clk 00:04:22]} {[%emt 00:00:42]} 27. h3 {[%clk 00:03:35]} {[%emt
00:00:10]} g5 {[%clk 00:04:01]} {[%emt 00:00:20]} 28. Ke2 {[%clk 00:03:12]}
{[%emt 00:00:21]} Kg7 {[%clk 00:03:41]} {[%emt 00:00:22]} 29. Kd2 {[%clk
00:03:09]} {[%emt 00:00:03]} Nd5 {[%clk 00:03:17]} {[%emt 00:00:23]} 30. Bxd5
{[%clk 00:02:57]} {[%emt 00:00:13]} cxd5 {[%clk 00:03:17]} {[%emt 00:00:01]} 31.
Bf2 {[%clk 00:02:56]} {[%emt 00:00:01]} Kf6 {[%clk 00:02:57]} {[%emt 00:00:19]}
32. Bg3 {[%clk 00:02:53]} {[%emt 00:00:03]} Bd7 {[%clk 00:02:51]} {[%emt
00:00:05]} 33. Ke3 {[%clk 00:02:52]} {[%emt 00:00:02]} Bb5 {[%clk 00:02:50]}
{[%emt 00:00:01]} 34. Bh2 {[%clk 00:02:47]} {[%emt 00:00:06]} h5 {[%clk
00:02:41]} {[%emt 00:00:08]} 35. Bg3 {[%clk 00:02:46]} {[%emt 00:00:01]} h4
{[%clk 00:02:40]} {[%emt 00:00:02]} 36. Bf2 {[%clk 00:02:45]} {[%emt 00:00:01]}
Bf1 {[%clk 00:02:37]} {[%emt 00:00:02]} 37. g3 {[%clk 00:02:40]} {[%emt
00:00:05]} hxg3 {[%clk 00:02:28]} {[%emt 00:00:09]} 38. Bxg3 {[%clk 00:02:39]}
Bxh3 {[%clk 00:02:27]} {[%emt 00:00:01]} 39. Kd3 {[%clk 00:02:36]} {[%emt
00:00:04]} Kf5 {[%clk 00:02:23]} {[%emt 00:00:04]} 40. Ke3 {[%clk 00:02:36]}
Bf1 {[%clk 00:02:10]} {[%emt 00:00:13]} 41. Bh2 {[%clk 00:02:33]} {[%emt
00:00:02]} Bb5 {[%clk 00:02:08]} {[%emt 00:00:02]} 42. Bg3 {[%clk 00:02:32]}
{[%emt 00:00:02]} Bc6 {[%clk 00:02:06]} 43. Bh2 {[%clk 00:02:30]} {[%emt
00:00:02]} e4 {[%clk 00:02:02]} {[%emt 00:00:04]} 44. f4 {[%clk 00:02:17]}
{[%emt 00:00:13]} g4 {[%clk 00:01:44]} {[%emt 00:00:18]} 45. Bg3 {[%clk
00:02:14]} {[%emt 00:00:03]} Bb5 {[%clk 00:01:13]} {[%emt 00:00:31]} 46. Bh4
{[%clk 00:02:13]} {[%emt 00:00:01]} Ke6 {[%clk 00:01:09]} {[%emt 00:00:04]} 47.
Bg3 {[%clk 00:02:09]} {[%emt 00:00:04]} Bd7 {[%clk 00:01:06]} {[%emt 00:00:03]}
48. Kd4 {[%clk 00:02:07]} {[%emt 00:00:03]} Bc6 {[%clk 00:01:03]} {[%emt
00:00:02]} 49. Ke3 {[%clk 00:02:06]} {[%emt 00:00:01]} Ke7 {[%clk 00:00:54]}
{[%emt 00:00:09]} 50. Kd4 {[%clk 00:02:04]} {[%emt 00:00:02]} Ke6 {[%clk
00:00:53]} 51. Ke3 {[%clk 00:02:04]} {[%emt 00:00:02]} *

[Event "Božićni turnir u VaraždinskimToplicama 26.12.2025."]
[Site "Varazdinske Toplice, Croatia"]
[Date "2025.12.26"]
[Round "3.6"]
[White "Mravunac, Damir"]
[Black "Forstnaric, Zdravko"]
[Result "1-0"]
[TimeControl "10"]
[WhiteFideId "14502810"]
[BlackFideId "14523841"]
[WhiteElo "2044"]
[BlackElo "1836"]

1. f4 {[%clk 00:09:58]} d5 {[%clk 00:09:56]} {[%emt 00:00:05]} 2. b3 {[%clk
00:09:55]} {[%emt 00:00:02]} Bf5 {[%clk 00:09:51]} {[%emt 00:00:06]} 3. Nf3
{[%clk 00:09:52]} {[%emt 00:00:03]} Nf6 {[%clk 00:09:49]} {[%emt 00:00:02]} 4.
Bb2 {[%clk 00:09:50]} {[%emt 00:00:03]} g6 {[%clk 00:09:46]} {[%emt 00:00:02]}
5. e3 {[%clk 00:09:48]} {[%emt 00:00:01]} Bg7 {[%clk 00:09:45]} {[%emt
00:00:02]} 6. a4 {[%clk 00:09:36]} {[%emt 00:00:11]} O-O {[%clk 00:09:43]}
{[%emt 00:00:02]} 7. Be2 {[%clk 00:09:32]} {[%emt 00:00:05]} Nbd7 {[%clk
00:09:41]} {[%emt 00:00:02]} 8. O-O {[%clk 00:09:29]} {[%emt 00:00:03]} c5
{[%clk 00:09:33]} {[%emt 00:00:08]} 9. h3 {[%clk 00:09:22]} {[%emt 00:00:06]}
Be4 {[%clk 00:09:12]} {[%emt 00:00:22]} 10. Ne5 {[%clk 00:08:46]} {[%emt
00:00:36]} Nxe5 {[%clk 00:08:52]} {[%emt 00:00:21]} 11. Bxe5 {[%clk 00:08:43]}
{[%emt 00:00:02]} d4 {[%clk 00:08:45]} {[%emt 00:00:08]} 12. d3 {[%clk
00:08:28]} {[%emt 00:00:14]} Bc6 {[%clk 00:08:40]} {[%emt 00:00:05]} 13. Bf3
{[%clk 00:08:06]} {[%emt 00:00:22]} dxe3 {[%clk 00:07:51]} {[%emt 00:00:49]} 14.
Bxc6 {[%clk 00:07:59]} {[%emt 00:00:07]} bxc6 {[%clk 00:07:51]} 15. Qe1 {[%clk
00:07:15]} {[%emt 00:00:44]} Nd7 {[%clk 00:07:50]} 16. Bxg7 {[%clk 00:07:10]}
{[%emt 00:00:06]} Kxg7 {[%clk 00:07:49]} {[%emt 00:00:01]} 17. Qxe3 {[%clk
00:07:02]} {[%emt 00:00:08]} e6 {[%clk 00:07:41]} {[%emt 00:00:08]} 18. Nd2
{[%clk 00:06:53]} {[%emt 00:00:08]} Qe7 {[%clk 00:07:38]} {[%emt 00:00:04]} 19.
Rae1 {[%clk 00:06:45]} {[%emt 00:00:07]} Rfe8 {[%clk 00:07:34]} {[%emt
00:00:04]} 20. Ne4 {[%clk 00:06:26]} {[%emt 00:00:19]} Rad8 {[%clk 00:07:15]}
{[%emt 00:00:20]} 21. Qd2 {[%clk 00:06:19]} {[%emt 00:00:07]} Nf6 {[%clk
00:07:04]} {[%emt 00:00:12]} 22. Qc3 {[%clk 00:06:15]} {[%emt 00:00:03]} Rd5
{[%clk 00:06:46]} {[%emt 00:00:19]} 23. g4 {[%clk 00:06:05]} {[%emt 00:00:09]}
Rd4 {[%clk 00:06:37]} {[%emt 00:00:10]} 24. Nxc5 {[%clk 00:05:52]} {[%emt
00:00:12]} Qd6 {[%clk 00:05:57]} {[%emt 00:00:40]} 25. Ne4 {[%clk 00:04:48]}
{[%emt 00:01:04]} Nxe4 {[%clk 00:05:56]} {[%emt 00:00:02]} 26. Rxe4 {[%clk
00:04:46]} {[%emt 00:00:02]} c5 {[%clk 00:05:40]} {[%emt 00:00:15]} 27. b4
{[%clk 00:04:28]} {[%emt 00:00:18]} e5 {[%clk 00:05:10]} {[%emt 00:00:31]} 28.
bxc5 {[%clk 00:04:06]} {[%emt 00:00:22]} Rxe4 {[%clk 00:04:40]} {[%emt
00:00:30]} 29. cxd6 {[%clk 00:03:57]} {[%emt 00:00:10]} 1-0